bitfinex/quotes_ETHUSD_20240916
["timestamp","ask_amount","ask_price","bid_price","bid_amount"]
[1726495255460,0.43051,2310.2,2310.0,4.329]
[1726495255800,0.43051,2310.2,2310.0,4.32897]
[1726495255953,0.43051,2310.2,2309.8,4.32926]
[1726495256160,0.43051,2310.2,2309.9,4.32907]
[1726495256414,2.2627,2310.0,2309.5,4.32987]
[1726495256571,2.0,2309.8,2309.3,4.33027]
[1726495256903,2.3718,2309.5,2309.2,0.0384073]
[1726495257265,4.33031,2309.3,2309.2,0.0384073]
[1726495257466,6.70211,2309.3,2309.2,0.0384073]
[1726495257805,3.76501218,2309.3,2309.2,0.0384073]
[1726495258410,8.09532218,2309.3,2309.2,0.0384073]
[1726495258792,13.77551486,2309.3,2309.2,0.00690056]
[1726495258993,14.22547575,2309.3,2309.2,0.00690056]
[1726495259305,13.77322344,2309.3,2309.2,0.00690056]
[1726495259489,10.99366595,2309.3,2309.2,0.00690056]
[1726495259812,3.76501218,2309.3,2309.2,0.00690056]
[1726495260111,8.09532218,2309.3,2309.2,0.00690056]
[1726495260709,3.76501218,2309.3,2309.2,0.00690056]
[1726495260908,2.3718,2309.3,2309.2,0.00690056]
[1726495262200,2.3718,2309.3,2309.2,4.33740056]
[1726495262654,2.3718,2309.3,2309.2,0.00690056]
[1726495263003,6.70211,2309.3,2309.2,0.00690056]
[1726495263317,11.03242,2309.3,2309.2,0.00690056]
[1726495263502,12.335662,2309.3,2309.2,0.00690056]
[1726495263813,16.665972,2309.3,2309.2,0.00690056]
[1726495264016,12.91762106,2309.3,2309.2,0.00690056]
[1726495264337,13.68025161,2309.3,2309.2,0.00690056]
[1726495264548,12.335662,2309.3,2309.2,0.00690056]
[1726495265547,8.4589144,2309.3,2309.2,0.00690056]
[1726495265941,8.4589144,2309.3,2309.2,0.00124063]
[1726495266144,6.1286044,2309.3,2309.2,0.00124063]
[1726495266810,4.8253624,2309.3,2309.2,0.00124063]
[1726495267047,2.8253624,2309.3,2309.2,0.00124063]
[1726495270850,0.4535624,2309.3,2309.2,0.00124063]
[1726495272310,14.3841824,2309.3,2309.2,0.00124063]
[1726495272513,24.22760403,2309.3,2309.2,0.00124063]
[1726495272763,6.69612,2308.6,2308.5,0.0384073]
[1726495272913,11.02774,2308.6,2308.5,0.0384073]
[1726495273855,6.69612,2308.6,2308.5,0.0384073]
[1726495274152,2.3645,2308.6,2308.5,0.0384073]
[1726495274319,7.53946633,2308.6,2308.5,0.0384073]
[1726495275610,11.87108633,2308.6,2308.5,0.0384073]
[1726495276257,19.20270633,2308.6,2308.5,0.0384073]
[1726495276463,14.87108633,2308.6,2308.5,0.0384073]
[1726495276825,19.20270633,2308.6,2308.5,0.0384073]
[1726495277218,14.87108633,2308.6,2308.5,0.0384073]
[1726495277765,19.20270633,2308.6,2308.5,0.0384073]
[1726495277912,36.82840939,2308.6,2308.5,0.0384073]
[1726495278315,36.24645033,2308.6,2308.5,0.0384073]
[1726495278855,37.81664923,2308.6,2308.5,0.0384073]
[1726495279054,42.14826923,2308.6,2308.5,0.0384073]
[1726495279217,37.81664923,2308.6,2308.5,0.0384073]
[1726495279419,28.56568723,2308.6,2308.5,0.0384073]
[1726495279734,19.20270633,2308.6,2308.5,0.0384073]
[1726495279937,19.20270633,2308.6,2308.5,0.00695574]
[1726495280342,14.87108633,2308.6,2308.5,0.00695574]
[1726495280654,12.32453163,2308.6,2308.5,0.00695574]
[1726495283684,26.49283769,2308.6,2308.5,0.00695574]
[1726495284026,31.42530026,2308.6,2308.5,0.00695574]
[1726495284226,21.82756597,2308.6,2308.5,0.00695574]
[1726495284571,15.77795097,2308.6,2308.5,0.00695574]
[1726495284772,15.32453163,2308.6,2308.5,0.00695574]
[1726495286073,12.32453163,2308.6,2308.5,0.00695574]
[1726495286369,6.7850653,2308.6,2308.5,0.00695574]
[1726495286570,2.4534453,2308.6,2308.5,0.00695574]
[1726495287272,6.7850653,2308.6,2308.5,0.00695574]
[1726495287489,11.1166853,2308.6,2308.5,0.00695574]
[1726495287777,6.7850653,2308.6,2308.5,0.00695574]
[1726495287929,8.20356409,2308.6,2308.5,0.00695574]
[1726495288571,12.53518409,2308.6,2308.5,0.00695574]
[1726495288775,8.20356409,2308.6,2308.5,0.00695574]
[1726495289577,12.53518409,2308.6,2308.5,0.00695574]
[1726495289734,8.20356409,2308.6,2308.5,0.00695574]
[1726495290156,12.53518409,2308.6,2308.5,0.00695574]
[1726495290559,8.20356409,2308.6,2308.5,0.00695574]
[1726495291691,12.53518409,2308.6,2308.5,0.00695574]
[1726495291986,8.20356409,2308.6,2308.5,0.00695574]
[1726495292163,12.53518409,2308.6,2308.5,0.00695574]
[1726495292599,2.4534453,2308.6,2308.5,0.00695574]
[1726495292751,2.4534453,2308.6,2308.5,8.67057574]
[1726495292752,0.4534453,2308.6,2308.5,8.67057574]
[1726495292950,0.4534453,2308.6,2308.5,11.11717574]
[1726495294378,0.4534453,2308.6,2308.5,6.78536574]
[1726495295297,0.4534453,2308.6,2308.5,2.45355574]
[1726495295652,2.4534453,2308.6,2308.5,0.00695574]
[1726495295998,14.69468171,2308.6,2308.5,0.00695574]
[1726495296295,15.5949734,2308.6,2308.5,0.00695574]
[1726495296752,15.59506567,2308.6,2308.5,0.00695574]
[1726495296956,15.59508713,2308.6,2308.5,0.00126073]
[1726495297181,16.03918508,2308.6,2308.5,0.00126073]
[1726495297554,2.0,2308.1,2307.8,2.5214073]
[1726495297866,0.900299,2308.0,2307.8,0.0384073]
[1726495298081,4.33294,2307.9,2307.8,0.0384073]
[1726495298309,6.97501725,2307.9,2307.8,0.0384073]
[1726495298606,11.75810676,2307.9,2307.8,0.0384073]
[1726495298812,2.64241911,2307.9,2307.8,0.0384073]
[1726495298967,0.90054368,2307.9,2307.8,0.0384073]
[1726495299167,1.35409935,2308.0,2307.8,0.0384073]
[1726495299414,0.90054368,2307.9,2307.8,0.0384073]
[1726495300369,1.35079036,2307.9,2307.8,0.0384073]
[1726495300567,2.0463638,2307.9,2307.8,0.0384073]
[1726495300806,2.49617145,2307.9,2307.8,0.0384073]
[1726495301213,2.047917,2307.9,2307.8,0.0384073]
[1726495301383,2.49617145,2307.9,2307.8,0.0384073]
[1726495302094,2.94632095,2307.9,2307.8,0.0384073]
[1726495302495,0.69557344,2307.9,2307.8,0.0384073]
[1726495302818,5.02851344,2307.9,2307.8,0.0384073]
[1726495303985,6.33266,2308.1,2307.8,0.0384073]
[1726495304170,2.25760774,2308.0,2307.8,0.0384073]
[1726495304373,2.25760774,2307.9,2307.8,0.0384073]
[1726495304617,2.25760774,2307.9,2307.8,6.8884373]
[1726495304818,1.80654896,2307.9,2307.8,6.8884373]
[1726495305105,1.80654896,2307.9,2307.8,11.2215673]
[1726495305408,1.80654896,2307.9,2307.8,12.34372603]
[1726495305707,1.80654896,2307.9,2307.8,8.01059603]
[1726495306215,1.80654896,2307.9,2307.8,6.8884373]
[1726495306368,1.80654896,2307.9,2307.8,2.5553073]
[1726495306576,6.33272,2308.1,2307.8,0.0384073]
[1726495306903,2.25784871,2307.9,2307.8,0.0384073]
[1726495307106,2.25779479,2307.9,2307.8,0.0384073]
[1726495307614,1.52383655,2308.0,2307.8,0.0384073]
[1726495307969,5.85660655,2308.0,2307.8,0.0384073]
[1726495308176,4.33294,2307.9,2307.8,0.0384073]
[1726495308493,8.29443355,2307.9,2307.8,0.0384073]
[1726495308683,5.85713355,2307.9,2307.8,0.0384073]
[1726495308886,1.52419355,2307.9,2307.8,0.0384073]
[1726495309273,1.52419355,2308.0,2307.8,0.0384073]
[1726495309474,5.85697355,2308.0,2307.8,0.0384073]
[1726495309667,1.52419355,2307.9,2307.8,0.0384073]
[1726495309934,4.23416524,2307.9,2307.8,0.0384073]
[1726495310173,1.52419355,2307.9,2307.8,0.0384073]
[1726495310498,6.04019156,2307.9,2307.8,0.0384073]
[1726495311210,8.84893801,2307.9,2307.8,0.0384073]
[1726495311412,13.18187801,2307.9,2307.8,0.0384073]
[1726495311709,11.99612434,2307.9,2307.8,0.0384073]
[1726495313990,15.15772943,2307.9,2307.8,0.0384073]
[1726495314515,10.82478943,2307.9,2307.8,0.0384073]
[1726495314828,11.99612434,2307.9,2307.8,0.0384073]
[1726495315129,7.66318434,2307.9,2307.8,0.0384073]
[1726495315535,17.36402434,2307.9,2307.8,0.0384073]
[1726495315735,22.97674621,2307.9,2307.8,0.0384073]
[1726495315905,22.32813778,2307.9,2307.8,0.0384073]
[1726495316590,38.15106078,2307.9,2307.8,0.0384073]
[1726495316796,40.37050597,2307.9,2307.8,0.0384073]
[1726495317290,34.86553597,2307.9,2307.8,0.0384073]
[1726495317629,10.66814,2307.3,2307.2,0.0384073]
[1726495318229,2.0,2307.3,2307.2,0.0384073]
[1726495318803,6.33407,2307.3,2307.2,0.0384073]
[1726495318986,2.0,2307.3,2307.2,0.0384073]
[1726495320630,6.33407,2307.3,2307.2,0.0384073]
[1726495320816,3.066795,2307.3,2307.2,0.0384073]
[1726495321427,11.734935,2307.3,2307.2,0.0384073]
[1726495321743,14.105235,2307.3,2307.2,0.0384073]
[1726495322039,9.771165,2307.3,2307.2,0.0384073]
[1726495322412,7.400865,2307.3,2307.2,0.0384073]
[1726495322618,6.33407,2307.3,2307.2,0.0384073]
[1726495322832,2.0,2307.3,2307.2,0.0384073]
[1726495323054,10.66814,2307.3,2307.2,0.0384073]
[1726495323200,16.09104,2307.3,2307.2,0.0384073]
[1726495323405,21.70489187,2307.3,2307.2,0.0384073]
[1726495323715,23.9207447,2307.3,2307.2,0.0384073]
[1726495324053,25.39415882,2307.3,2307.2,0.00705462]
[1726495324405,26.96215196,2307.3,2307.2,0.00705462]
[1726495325048,31.29622196,2307.3,2307.2,0.00705462]
[1726495325204,26.96215196,2307.3,2307.2,0.00705462]
[1726495325407,25.39415882,2307.3,2307.2,0.00705462]
[1726495325950,26.96215196,2307.3,2307.2,0.00705462]
[1726495326114,28.84188113,2307.3,2307.2,0.00705462]
[1726495326303,23.22802926,2307.3,2307.2,0.00705462]
[1726495326502,13.07411638,2307.3,2307.2,0.00705462]
[1726495326707,17.40818638,2307.3,2307.2,0.00705462]
[1726495327216,16.2306105,2307.3,2307.2,0.00705462]
[1726495327905,13.07411638,2307.3,2307.2,0.00705462]
[1726495328109,16.2306105,2307.3,2307.2,0.00705462]
[1726495328907,21.19585394,2307.3,2307.2,0.00705462]
[1726495329106,20.45085982,2307.3,2307.2,0.00705462]
[1726495329431,19.81968638,2307.3,2307.2,0.00705462]
[1726495329641,26.65365642,2307.3,2307.2,0.00705462]
[1726495329830,27.57304113,2307.3,2307.2,0.00705462]
[1726495330036,26.94186769,2307.3,2307.2,0.00705462]
[1726495330699,21.38767952,2307.3,2307.2,0.00705462]
[1726495330904,21.38767952,2307.3,2307.2,0.00129657]
[1726495331704,19.81968638,2307.3,2307.2,0.00129657]
[1726495331906,24.54196727,2307.3,2307.2,0.00129657]
[1726495332142,19.81968638,2307.3,2307.2,0.00129657]
[1726495332506,22.97363288,2307.3,2307.2,0.00129657]
[1726495333207,19.81968638,2307.3,2307.2,0.00129657]
[1726495333546,6.33538,2306.6,2306.5,0.0384073]
[1726495333748,10.67076,2306.6,2306.5,0.0384073]
[1726495333950,26.29306057,2306.6,2306.5,0.0384073]
[1726495334153,26.29306057,2306.6,2305.6,6.81105]
[1726495334154,2.0,2305.9,2305.6,6.81105]
[1726495334354,3.35073904,2305.9,2305.6,6.81105]
[1726495334663,3.80091357,2305.9,2305.6,2.4738]
[1726495334807,3.80091357,2305.9,2305.6,6.81104]
[1726495335012,2.0,2305.9,2305.8,6.8535873]
[1726495335305,2.45359019,2305.9,2305.8,2.5167073]
[1726495335521,2.45359019,2305.9,2305.8,2.4783]
[1726495335522,3.35371948,2305.9,2305.8,2.4783]
[1726495335721,3.35371948,2305.9,2305.8,6.81518]
[1726495335946,3.35371948,2305.9,2305.8,2.4783]
[1726495336541,2.45359019,2305.9,2305.8,2.4783]
[1726495336741,3.35371948,2305.9,2305.8,2.4783]
[1726495337188,0.45359019,2305.9,2305.8,6.81518]
[1726495337678,0.45359019,2305.9,2305.8,11.15206]
[1726495337884,0.45359019,2305.9,2305.8,11.83812982]
[1726495338252,0.45359019,2305.9,2305.8,7.50124982]
[1726495338582,0.45359019,2305.9,2305.8,6.81518]
[1726495338751,0.45359019,2305.9,2305.8,11.15206]
[1726495339557,3.35371948,2305.9,2305.6,2.3964182]
[1726495339887,1.37058094,2305.8,2305.6,2.3964182]
[1726495340190,1.37058094,2305.8,2305.6,0.0455182]
[1726495340361,1.8212487,2305.8,2305.6,0.0455182]
[1726495340545,1.35079705,2305.7,2305.6,0.0455182]
[1726495340882,0.89962532,2305.7,2305.6,0.0455182]
[1726495341672,0.89962532,2305.7,2305.6,4.3827782]
[1726495341859,0.89962532,2305.8,2305.7,4.33707]
[1726495342042,0.89962532,2305.8,2305.7,11.12724]
[1726495342244,3.80438724,2305.9,2305.7,11.12724]
[1726495342245,2.45359019,2305.9,2305.8,4.33688]
[1726495342994,2.45359019,2305.9,2305.7,6.79007]
[1726495343170,2.45359019,2305.9,2305.6,4.3827382]
[1726495343171,0.89962532,2305.8,2305.6,4.3827382]
[1726495343372,3.35321551,2305.9,2305.7,4.3369]
[1726495343685,3.35321551,2305.9,2305.6,4.3827382]
[1726495343686,3.35321551,2305.9,2305.8,4.33688]
[1726495343903,3.35321551,2305.9,2305.7,4.33698]
[1726495344074,4.00370812,2305.9,2305.7,4.33698]
[1726495344270,0.89962532,2305.8,2305.6,0.0455182]
[1726495344629,9.58649538,2305.7,2305.6,0.0455182]
[1726495345079,9.58552831,2305.7,2305.6,0.00836138]
[1726495345487,13.92259831,2305.7,2305.6,0.00836138]
[1726495345699,16.09011847,2305.7,2305.6,0.00836138]
[1726495345861,16.42626016,2305.7,2305.6,0.00836138]
[1726495346067,14.3366879,2305.7,2305.6,0.00836138]
[1726495346576,18.6737579,2305.7,2305.6,0.00836138]
[1726495346786,14.3366879,2305.7,2305.6,0.00836138]
[1726495347311,18.22332341,2305.7,2305.6,0.00836138]
[1726495347608,18.6737579,2305.7,2305.6,0.00836138]
[1726495347964,18.6737579,2305.7,2304.9,2.5905052]
[1726495347965,2.0,2305.0,2304.9,0.0400052]
[1726495348161,14.57526648,2305.0,2304.9,0.0400052]
[1726495348772,5.89848648,2305.0,2304.9,0.0400052]
[1726495349242,5.0,2305.0,2304.9,0.0400052]
[1726495349512,5.0,2305.0,2304.9,2.6218052]
[1726495349672,2.0,2305.0,2304.9,2.6218052]
[1726495350813,0.45369274,2305.0,2304.9,11.99500972]
[1726495351038,0.45369274,2305.0,2304.9,11.2989652]
[1726495351571,2.45369274,2305.0,2304.9,2.6218052]
[1726495351792,2.45369274,2305.0,2304.9,0.0400052]
[1726495351793,2.69906201,2305.0,2304.9,0.0400052]
[1726495351992,2.69906201,2305.0,2304.9,4.3785852]
[1726495352308,2.45369274,2305.0,2304.9,0.0400052]
[1726495352493,2.45369274,2305.0,2304.9,4.3785852]
[1726495352803,2.45369274,2305.0,2304.9,0.0400052]
[1726495353365,9.79208274,2305.0,2304.9,0.0400052]
[1726495353565,16.66414559,2305.0,2304.9,0.0400052]
[1726495354008,12.32575559,2305.0,2304.9,0.0400052]
[1726495354180,10.97802587,2305.0,2304.9,0.0400052]
[1726495354387,12.32575559,2305.0,2304.9,0.0400052]
[1726495355053,19.55008883,2305.0,2304.9,0.0400052]
[1726495355477,19.99933207,2305.0,2304.9,0.0400052]
[1726495355676,17.75311587,2305.0,2304.9,0.0400052]
[1726495355986,17.75311587,2305.0,2304.2,0.0400052]
[1726495355987,2.0,2304.3,2304.2,0.0400052]
[1726495356186,5.0,2304.3,2304.2,0.0400052]
[1726495356385,5.89915178,2304.3,2304.2,0.0400052]
[1726495356586,5.0,2304.3,2304.2,0.0400052]
[1726495356788,15.08295008,2304.3,2304.2,0.0400052]
[1726495356986,23.22908776,2304.3,2304.2,0.0400052]
[1726495357224,2.0,2303.6,2303.5,0.0400052]
[1726495357921,6.34103,2303.6,2303.5,0.0400052]
[1726495358127,14.316163,2303.6,2303.5,0.0400052]
[1726495358275,21.118593,2303.6,2303.5,0.0400052]
[1726495358480,16.777563,2303.6,2303.5,0.0400052]
[1726495358679,16.777563,2303.6,2302.9,8.6846]
[1726495358680,2.0,2303.0,2302.9,8.6846]
[1726495358889,3.0,2303.5,2303.1,4.3419]
[1726495358890,2.0,2303.3,2303.1,4.3419]
[1726495359118,2.0,2303.3,2303.2,2.4088]
[1726495359324,2.0,2303.0,2302.9,11.1588668]
[1726495359722,2.0,2303.0,2302.9,6.8165168]
[1726495359915,2.0,2303.0,2302.9,11.1588668]
[1726495360127,2.0,2303.0,2302.9,2.4742968]
[1726495360437,2.0,2303.0,2302.9,0.0654968]
[1726495360839,2.0,2303.0,2302.9,4.4078468]
[1726495360990,5.7668,2303.5,2303.1,4.34185]
[1726495360991,2.0,2303.3,2303.1,4.34185]
[1726495361197,2.0,2303.3,2303.0,4.34215]
[1726495361198,2.23,2303.3,2303.0,4.34215]
[1726495361433,2.23,2303.3,2303.0,8.68421]
[1726495361739,2.23,2303.3,2303.0,4.4075568]
[1726495361887,0.523,2303.2,2303.0,0.0654968]
[1726495362940,2.23,2303.3,2303.0,8.7496868]
[1726495363105,2.0,2303.3,2303.2,11.17046]
[1726495363291,2.0,2303.6,2303.5,11.10372]
[1726495363730,2.0,2303.6,2303.5,11.114643]
[1726495364132,7.47,2304.2,2303.5,11.114643]
[1726495364133,2.0,2303.9,2303.7,4.3408]
[1726495364441,2.0,2303.9,2303.7,4.34074]
[1726495364638,2.0,2303.9,2303.5,6.773333]
[1726495364944,2.0,2303.6,2303.5,4.352033]
[1726495365143,2.0,2303.6,2303.5,0.010923]
[1726495366037,2.45383537,2303.6,2303.5,0.010923]
[1726495367331,14.13589537,2303.6,2303.5,0.010923]
[1726495367577,15.85733575,2303.6,2303.5,0.010923]
[1726495368148,15.85733575,2303.6,2303.5,0.00197926]
[1726495368832,15.85733575,2303.6,2303.0,0.00655306]
[1726495368833,2.0,2303.1,2303.0,0.00655306]
[1726495369599,2.0,2303.1,2303.0,4.34871306]
[1726495369802,2.0,2302.7,2302.6,11.24222]
[1726495371046,2.0,2302.7,2302.6,6.89931]
[1726495371247,2.0,2302.7,2302.6,4.34291]
[1726495372090,2.0,2302.7,2302.6,4.29291]
[1726495372241,2.0,2303.0,2302.7,4.3426]
[1726495372443,5.0,2303.0,2302.7,4.3426]
[1726495372972,5.0,2303.0,2302.7,8.68522]
[1726495373146,5.0,2303.0,2302.5,4.34293]
[1726495373349,3.6423533,2302.9,2302.5,4.34293]
[1726495373574,2.0,2302.6,2302.5,4.34293]
[1726495373921,2.0,2302.6,2302.4,2.5531]
[1726495374415,2.0,2302.6,2302.1,6.75912]
[1726495374416,2.0,2302.3,2302.1,6.75912]
[1726495374712,2.0,2302.3,2302.2,4.34367]
[1726495375685,2.0,2302.3,2302.2,8.68734]
[1726495376097,2.0,2302.6,2302.5,4.3431]
[1726495376299,2.0,2302.6,2302.1,6.75921]
[1726495376300,2.0,2302.6,2302.3,8.68682]
[1726495376504,2.0,2302.6,2302.3,4.34337]
[1726495376706,2.0,2302.6,2302.4,4.3432]
[1726495376876,3.0,2302.5,2302.4,4.34329]
[1726495377083,2.0,2302.6,2302.5,4.3431]
[1726495377483,2.0,2302.6,2302.4,4.34329]
[1726495377691,2.0,2302.6,2302.4,8.68648]
[1726495377975,2.0,2302.6,2302.5,11.2052]
[1726495378176,2.0,2302.9,2302.8,4.34247]
[1726495379011,2.0,2302.9,2302.8,8.685]
[1726495379579,2.0,2302.9,2302.8,11.1153]
[1726495381071,2.0,2303.2,2302.8,2.4303]
[1726495381318,2.0,2303.2,2303.1,8.68394]
[1726495382025,2.4538755,2303.2,2303.1,8.68394]
[1726495382180,2.4538755,2303.2,2303.1,4.34197]
[1726495382383,2.0,2302.8,2302.5,2.4284]
[1726495382618,2.0,2302.8,2302.7,4.34272]
[1726495382824,2.0,2302.8,2302.7,8.68544]
[1726495383033,2.0,2302.8,2302.7,8.72348022]
[1726495383192,5.0,2302.8,2302.7,0.03804022]
[1726495383526,2.0,2302.5,2302.4,4.34328]
[1726495383821,2.0,2302.5,2302.4,8.68657]
[1726495384198,2.0,2302.8,2302.7,4.34272]
[1726495384534,2.0,2302.8,2302.7,8.68544]
[1726495384888,2.0,2302.8,2302.7,4.34272]
[1726495385166,2.0,2302.8,2302.4,4.34317]
[1726495385325,2.0,2302.8,2302.5,4.34308]
[1726495386027,2.934227,2302.8,2302.5,4.34308]
[1726495386241,2.934227,2302.8,2302.6,4.34284]
[1726495386814,2.0,2302.5,2302.3,6.77803]
[1726495387017,2.0,2302.5,2302.4,4.34329]
[1726495387814,2.0,2302.5,2302.3,4.34333]
[1726495388029,2.5,2302.5,2302.3,8.68672]
[1726495388337,2.5,2302.5,2302.2,4.34358]
[1726495388552,2.0,2302.2,2302.0,0.0545738]
[1726495388696,3.0,2302.1,2302.0,0.0545738]
[1726495388905,7.34385,2302.1,2302.0,0.0545738]
[1726495389302,3.0,2302.1,2302.0,0.0545738]
[1726495389502,4.17811,2302.1,2302.0,0.0545738]
[1726495389748,2.0,2302.2,2302.0,0.0545738]
[1726495389949,2.0,2302.2,2302.1,4.34385]
[1726495390244,2.0,2302.2,2302.1,8.6877]
[1726495390448,2.0,2302.5,2302.4,4.34329]
[1726495390630,2.0,2302.5,2302.3,6.68327]
[1726495390813,2.0,2302.5,2302.3,6.68318]
[1726495391004,2.0,2302.5,2302.3,6.68315]
[1726495391203,2.0,2302.1,2302.0,0.0545738]
[1726495391911,9.34385,2302.1,2302.0,0.0545738]
[1726495392121,12.950835,2302.1,2302.0,0.0545738]
[1726495392429,17.294685,2302.1,2302.0,0.0545738]
[1726495392745,12.950835,2302.1,2302.0,0.0545738]
[1726495393132,17.294685,2302.1,2302.0,0.0545738]
[1726495393338,12.950835,2302.1,2302.0,0.0545738]
[1726495393532,17.294685,2302.1,2302.0,0.0545738]
[1726495393735,12.950835,2302.1,2302.0,0.0545738]
[1726495394061,5.0,2302.4,2302.1,4.34373]
[1726495394351,2.0,2302.4,2302.1,4.34373]
[1726495394499,2.0,2302.1,2302.0,0.0545738]
[1726495395056,0.5,2302.3,2302.2,4.34367]
[1726495395350,2.0,2302.4,2302.1,4.34384]
[1726495395501,0.25,2302.3,2302.1,4.34384]
[1726495395705,0.25,2302.3,2302.2,4.34367]
[1726495395902,2.0,2302.1,2302.0,0.0545738]
[1726495396145,5.0,2302.1,2302.0,0.0545738]
[1726495396316,9.34385,2302.1,2302.0,0.0545738]
[1726495396518,10.950147,2302.1,2302.0,0.0545738]
[1726495396708,15.293997,2302.1,2302.0,0.0545738]
[1726495397149,16.19172415,2302.1,2302.0,0.0545738]
[1726495397358,19.43558413,2302.1,2302.0,0.0545738]
[1726495397522,18.0889934,2302.1,2302.0,0.0545738]
[1726495397845,19.43656823,2302.1,2302.0,0.0545738]
[1726495398035,19.88729697,2302.1,2302.0,0.0545738]
[1726495399154,19.88729697,2302.1,2300.1,11.74751]
[1726495399155,2.0,2300.8,2300.1,11.74751]
[1726495399360,2.0,2300.8,2300.0,14.8757738]
[1726495399361,2.0,2300.4,2300.0,2.4757738]
[1726495399852,0.89927469,2300.7,2300.1,2.4179]
[1726495400013,5.0,2301.0,2300.8,4.34615]
[1726495400443,2.0,2301.0,2300.8,4.34615]
[1726495400645,5.0,2301.0,2300.8,4.34615]
[1726495400854,2.0,2300.7,2300.5,4.34684]
[1726495401058,2.0,2301.0,2300.6,4.34669]
[1726495401265,2.0,2301.0,2300.8,4.34618]
[1726495401418,2.0,2301.0,2300.6,8.69319]
[1726495401753,2.0,2301.0,2300.6,8.69305]
[1726495401961,2.0,2301.0,2300.8,4.34617]
[1726495402169,3.0,2301.2,2300.9,6.93742]
[1726495402320,2.0,2301.3,2301.1,4.34562]
[1726495402526,2.0,2301.0,2300.7,2.5913]
[1726495402829,2.0,2301.0,2300.7,6.93767]
[1726495403018,2.0,2301.0,2300.8,4.34628]
[1726495403219,2.0,2301.0,2300.7,2.5913]
[1726495403461,2.0,2301.0,2300.8,4.34616]
[1726495403756,2.0,2301.0,2300.7,11.28399]
[1726495403980,2.0,2301.0,2300.7,6.93763]
[1726495404349,2.0,2301.0,2300.7,11.284]
[1726495404539,2.0,2301.0,2300.7,6.93763]
[1726495404741,3.0,2301.2,2301.1,4.34574]
[1726495404967,2.89927469,2301.3,2301.1,4.34574]
[1726495404968,5.0,2301.3,2301.1,4.34574]
[1726495405154,5.0,2301.3,2300.7,3.285063]
[1726495405349,5.0,2301.3,2300.6,4.34663]
[1726495405350,0.89927469,2301.6,2301.3,2.5913]
[1726495405686,2.0,2301.4,2301.0,2.5913]
[1726495405853,2.0,2301.4,2301.2,4.34537]
[1726495406184,2.89927469,2301.7,2301.5,4.34499]
[1726495406383,2.89927469,2301.7,2301.4,4.34506]
[1726495406569,2.0,2301.7,2301.4,4.34505]
[1726495406741,2.0,2301.7,2301.4,4.34503]
[1726495407078,2.0,2301.3,2301.1,4.34562]
[1726495407388,2.0,2301.3,2301.0,6.93712]
[1726495407587,2.0,2301.3,2301.0,2.5913]
[1726495407740,2.0,2301.0,2300.7,14.31037]
[1726495408087,2.0,2301.0,2300.7,2.5639]
[1726495408438,9.34596,2301.0,2300.7,2.5639]
[1726495408636,5.280786,2300.9,2300.4,2.3423]
[1726495408842,2.0,2300.7,2300.4,2.3423]
[1726495409347,2.0,2300.7,2300.5,4.34685]
[1726495410055,2.0,2300.7,2300.6,4.34669]
[1726495410240,3.0,2301.0,2300.6,4.34669]
[1726495410241,2.0,2301.0,2300.8,4.3463]
[1726495410588,5.0,2301.3,2300.4,6.68933]
[1726495410744,2.0,2301.3,2301.0,4.34589]
[1726495410945,2.89927469,2301.6,2301.3,4.34518]
[1726495411154,9.26854938,2301.8,2301.5,4.34499]
[1726495411155,0.89927469,2301.8,2301.5,4.34499]
[1726495411485,2.0,2301.9,2301.8,4.34442]
[1726495411978,0.4538964,2302.1,2302.0,8.68808]
[1726495412464,0.4538964,2302.1,2302.0,4.34404]
[1726495412866,0.4538964,2302.1,2302.0,8.68808]
[1726495413097,0.4538964,2302.1,2302.0,4.34404]
[1726495413410,5.4538964,2302.1,2301.6,2.3777]
[1726495413617,2.0,2301.8,2301.4,4.34512]
[1726495413769,2.0,2301.8,2301.5,4.34486]
[1726495414167,2.0,2301.8,2301.5,4.34482]
[1726495414168,3.72269632,2301.8,2301.5,4.34482]
[1726495414371,1.35357848,2301.7,2301.3,6.91032]
[1726495414669,1.35357848,2301.7,2301.3,2.565]
[1726495414670,2.0,2301.5,2301.3,2.565]
[1726495414869,2.0,2301.5,2301.3,6.91022]
[1726495415069,2.0,2301.5,2301.3,2.565]
[1726495415326,1.35357848,2301.7,2301.4,8.69021]
[1726495415466,0.89984441,2301.6,2301.4,4.34503]
[1726495416265,0.89984441,2301.6,2301.5,4.34499]
[1726495416471,4.35357848,2301.7,2301.6,4.3448]
[1726495416666,0.45373407,2301.7,2301.6,8.6896]
[1726495416917,0.45373407,2301.7,2301.6,11.95166]
[1726495417076,0.45373407,2301.7,2301.6,16.29646]
[1726495417271,0.45373407,2301.7,2301.6,11.95166]
[1726495417472,0.45373407,2301.7,2301.6,11.0827]
[1726495417817,0.45373407,2301.7,2301.6,2.3931]
[1726495418306,0.45373407,2301.7,2301.6,6.7379]
[1726495418683,0.45373407,2301.7,2301.5,4.34485]
[1726495419200,0.45373407,2301.7,2301.6,4.3448]
[1726495419400,0.45373407,2301.7,2301.6,8.6896]
[1726495420080,0.45373407,2301.7,2301.6,11.0978]
[1726495420511,0.45373407,2301.7,2301.6,16.98689]
[1726495420878,0.89984441,2302.3,2302.1,2.4151]
[1726495421212,2.90076879,2302.4,2302.3,8.68696]
[1726495421509,1.34891203,2302.5,2302.4,4.34329]
[1726495421510,0.90087277,2302.5,2302.4,4.34329]
[1726495421713,3.34891203,2302.7,2302.6,4.34291]
[1726495422008,3.34891203,2302.7,2302.3,4.34331]
[1726495422009,0.45360842,2302.5,2302.3,4.34331]
[1726495422215,2.9008974,2302.4,2302.1,6.75882]
[1726495422373,0.9008974,2302.2,2301.8,6.87805]
[1726495422576,3.9008974,2301.9,2301.5,4.34486]
[1726495422770,0.9008974,2301.8,2301.5,4.34486]
[1726495422988,3.0,2301.9,2301.7,4.34461]
[1726495422989,3.9008974,2301.9,2301.7,4.34461]
[1726495423219,3.9008974,2301.9,2301.7,8.6891]
[1726495423220,4.83320498,2301.9,2301.7,8.6891]
[1726495423444,4.83320498,2301.9,2301.7,4.34446]